bitfinex/quotes_SOLUSD_20250819
["timestamp","ask_amount","ask_price","bid_price","bid_amount"]
[1755636675932,0.03,178.56,178.55,0.68]
[1755636676701,0.03,178.56,178.55,7.88486796]
[1755636677012,0.03,178.56,178.55,21.62262354]
[1755636677485,0.03,178.56,178.55,23.86710354]
[1755636680389,0.03,178.56,178.55,15.98223558]
[1755636680714,0.71,178.56,178.55,39.62]
[1755636680888,0.03,178.56,178.55,46.82486796]
[1755636682102,0.03,178.56,178.55,39.62]
[1755636682302,0.71,178.56,178.55,39.62]
[1755636682989,0.03,178.56,178.55,39.62]
[1755636683194,0.71,178.56,178.55,39.62]
[1755636684002,0.03,178.56,178.55,39.62]
[1755636684503,0.71,178.56,178.55,39.62]
[1755636684689,0.03,178.56,178.55,39.62]
[1755636684892,0.71,178.56,178.55,39.62]
[1755636685105,0.71,178.56,178.52,7.26486796]
[1755636685311,0.68,178.55,178.53,39.64]
[1755636685609,0.03,178.56,178.53,46.84486796]
[1755636686712,0.03,178.56,178.54,7.88486796]
[1755636686893,0.03,178.56,178.55,39.62]
[1755636687210,0.03,178.56,178.55,47.50486796]
[1755636691117,0.03,178.56,178.55,46.82486796]
[1755636691303,0.71,178.56,178.55,39.62]
[1755636693888,0.03,178.56,178.54,39.6]
[1755636694309,0.03,178.56,178.54,40.29]
[1755636694508,0.03,178.56,178.54,39.6]
[1755636694912,0.03,178.56,178.54,40.29]
[1755636697527,0.03,178.56,178.55,7.89486796]
[1755636698208,0.03,178.56,178.54,54.68973596]
[1755636698397,0.03,178.56,178.54,55.37973596]
[1755636698628,0.03,178.56,178.55,0.69]
[1755636700841,0.03,178.56,178.54,47.484868]
[1755636701008,0.03,178.56,178.54,48.174868]
[1755636701208,0.03,178.56,178.55,0.69]
[1755636702532,7.36486796,178.56,178.52,13.79775558]
[1755636702735,7.36486796,178.56,178.53,39.72216157]
[1755636702922,7.36486796,178.56,178.53,46.92702957]
[1755636703540,7.36486796,178.56,178.53,47.61702957]
[1755636703541,0.03,178.56,178.53,47.61702957]
[1755636704123,0.16,178.56,178.53,46.92702957]
[1755636705516,0.03,178.56,178.53,46.92702957]
[1755636705716,0.03,178.56,178.53,39.72216157]
[1755636706633,0.03,178.56,178.53,40.41216157]
[1755636706840,0.03,178.56,178.53,47.61702957]
[1755636707715,0.03,178.56,178.54,39.54]
[1755636708235,0.03,178.56,178.53,0.83216157]
[1755636708446,0.03,178.56,178.54,46.744868]
[1755636708615,0.03,178.56,178.54,47.434868]
[1755636709237,0.03,178.56,178.54,40.23]
[1755636709434,0.03,178.56,178.54,39.54]
[1755636709636,0.03,178.56,178.54,40.23]
[1755636710144,0.03,178.56,178.54,42.474858]
[1755636711039,7.23486796,178.56,178.54,42.474858]
[1755636711216,0.03,178.56,178.55,0.69]
[1755636712143,0.03,178.56,178.54,41.784858]
[1755636712336,0.03,178.56,178.55,0.69]
[1755636715043,11.01600868,178.56,178.54,42.474858]
[1755636715247,7.23486796,178.56,178.54,42.474858]
[1755636715448,7.23486796,178.56,178.55,0.69]
[1755636715647,7.23486796,178.56,178.52,0.20216157]
[1755636715850,7.23486796,178.56,178.54,46.774868]
[1755636716027,7.23486796,178.56,178.54,39.54]
[1755636716423,7.23486796,178.56,178.54,40.23]
[1755636717650,0.03,178.56,178.54,40.23]
[1755636719038,0.03,178.56,178.55,0.69]
[1755636719232,0.03,178.56,178.55,7.89486796]
[1755636719836,0.03,178.56,178.55,0.83216157]
[1755636720145,0.03,178.56,178.55,21.63262354]
[1755636720527,0.03,178.56,178.55,53.03253543]
[1755636721136,0.03,178.56,178.55,58.63320751]
[1755636721336,0.03,178.56,178.55,53.03253543]
[1755636721539,0.03,178.56,178.55,58.63320751]
[1755636723731,0.03,178.56,178.55,32.63320751]
[1755636725857,0.03,178.56,178.55,34.87718351]
[1755636728176,0.03,178.56,178.55,29.27651143]
[1755636728491,0.03,178.56,178.55,62.56443797]
[1755636728673,0.03,178.56,178.55,62.70659954]
[1755636728842,0.03,178.56,178.55,63.41659954]
[1755636729328,0.03,178.56,178.55,63.27443797]
[1755636729529,0.03,178.56,178.55,63.41659954]
[1755636730759,0.03,178.56,178.55,55.50173158]
[1755636731762,0.03,178.56,178.55,56.21173158]
[1755636732564,0.03,178.56,178.55,63.41659954]
[1755636735266,0.03,178.56,178.55,55.50173158]
[1755636735982,0.03,178.56,178.55,63.41659954]
[1755636738275,0.03,178.56,178.55,56.21173158]
[1755636738771,0.03,178.56,178.55,63.41659954]
[1755636738976,0.03,178.56,178.55,69.01727162]
[1755636739270,0.03,178.56,178.55,63.41659954]
[1755636739485,0.03,178.56,178.55,89.41659954]
[1755636744801,0.03,178.56,178.55,95.01727162]
[1755636746099,0.03,178.56,178.55,89.41659954]
[1755636751886,0.03,178.56,178.55,95.01727162]
[1755636752200,0.03,178.56,178.55,69.01727162]
[1755636755214,0.03,178.56,178.55,63.41659954]
[1755636762825,0.03,178.56,178.55,69.01727162]
[1755636764014,0.03,178.58,178.57,13.59559401]
[1755636764204,0.03,178.58,178.57,60.44262354]
[1755636764415,0.03,178.58,178.57,61.16262354]
[1755636764909,0.03,178.58,178.57,66.76266834]
[1755636765314,0.03,178.58,178.57,69.00614134]
[1755636766839,138.20486796,178.69,178.57,69.00614134]
[1755636766840,0.66,178.67,178.63,39.59559401]
[1755636767004,0.66,178.68,178.67,0.14216157]
[1755636767328,3.77487458,178.72,178.71,26.14216157]
[1755636767329,0.66,178.72,178.71,26.14216157]
[1755636767507,0.66,178.72,178.71,65.64216157]
[1755636767706,0.66,178.72,178.71,39.64216157]
[1755636768725,0.66,178.72,178.67,14.40973596]
[1755636769041,0.66,178.72,178.69,0.14216157]
[1755636769237,0.66,178.72,178.7,39.5]
[1755636770539,3.7689974,178.79,178.71,0.14216157]
[1755636770837,25.50878165,178.8,178.7,0.14216157]
[1755636770838,0.66,178.72,178.7,0.14216157]
[1755636771037,0.66,178.72,178.71,39.64216157]
[1755636771240,0.66,178.73,178.71,39.64216157]
[1755636771422,0.66,178.72,178.71,39.64216157]
[1755636776835,0.66,178.74,178.71,39.5]
[1755636777135,0.03,178.76,178.72,8.06702953]
[1755636777335,0.03,178.76,178.73,39.48]
[1755636777537,0.69,178.76,178.73,39.48]
[1755636777721,0.69,178.76,178.74,0.14216157]
[1755636777926,0.69,178.76,178.75,39.48]
[1755636778241,0.03,178.76,178.75,39.48]
[1755636779150,0.03,178.76,178.75,39.62216157]
[1755636779541,0.03,178.76,178.75,47.48702957]
[1755636779743,0.03,178.76,178.75,39.48]
[1755636779923,0.69,178.76,178.75,39.48]
[1755636780118,0.03,178.76,178.75,39.62216157]
[1755636780443,0.69,178.76,178.75,39.48]
[1755636780664,7.89486796,178.76,178.75,39.48]
[1755636781066,0.69,178.76,178.75,39.48]
[1755636781213,0.03,178.76,178.75,39.48]
[1755636781419,7.89486796,178.76,178.75,39.48]
[1755636782751,7.89486796,178.76,178.74,39.48]
[1755636782925,7.86486796,178.75,178.74,39.48]
[1755636783429,0.66,178.75,178.74,39.48]
[1755636784937,7.23486796,178.76,178.74,39.48]
[1755636785125,0.03,178.76,178.74,39.48]
[1755636786151,0.03,178.76,178.74,40.15]
[1755636786520,0.03,178.76,178.75,0.67]
[1755636787115,0.03,178.76,178.74,40.15]
[1755636787345,7.23486796,178.76,178.74,39.48]
[1755636787540,7.90486796,178.76,178.74,39.48]
[1755636787848,7.87486796,178.75,178.74,39.48]
[1755636788829,7.23486796,178.76,178.74,39.48]
[1755636789750,7.90486796,178.76,178.74,39.48]
[1755636789931,7.90486796,178.76,178.74,39.46]
[1755636790252,7.20486796,178.75,178.74,39.46]
[1755636793529,0.03,178.76,178.74,39.46]
[1755636793736,7.20486796,178.75,178.74,39.46]
[1755636794219,7.20486796,178.75,178.73,39.46]
[1755636794423,7.20486796,178.74,178.73,39.46]
[1755636795231,7.20486796,178.74,178.73,40.13]
[1755636798855,7.20486796,178.74,178.73,39.46]
[1755636800846,7.20486796,178.74,178.71,0.67]
[1755636801053,0.67,178.75,178.73,39.46]
[1755636801251,7.20486796,178.74,178.73,39.46]
[1755636803051,0.7,178.76,178.73,39.46]
[1755636803348,7.20486796,178.74,178.73,39.46]
[1755636803729,7.20486796,178.74,178.73,40.13]
[1755636804954,7.20486796,178.75,178.73,40.13]
[1755636805575,7.20486796,178.74,178.73,40.13]
[1755636807770,0.03,178.76,178.73,40.13]
[1755636808067,7.20486796,178.74,178.73,40.13]
[1755636808852,0.03,178.76,178.73,40.13]
[1755636809072,7.20486796,178.74,178.73,39.46]
[1755636809738,0.7,178.76,178.73,39.46]
[1755636809938,7.20486796,178.74,178.73,39.46]
[1755636810575,7.20486796,178.74,178.73,40.13]
[1755636810777,0.03,178.76,178.73,40.13]
[1755636810778,7.20486796,178.75,178.73,40.13]
[1755636811093,3.79047838,178.76,178.74,0.67]
[1755636811094,7.23486796,178.76,178.74,0.67]
[1755636811239,7.20486796,178.75,178.74,0.67]
[1755636811435,7.23486796,178.76,178.73,39.46]
[1755636811673,7.23486796,178.76,178.75,0.67]
[1755636812073,0.03,178.76,178.75,0.67]
[1755636813768,7.23486796,178.76,178.75,0.67]
[1755636813945,0.03,178.76,178.75,0.67]
[1755636814140,7.23486796,178.76,178.75,0.67]
[1755636815579,0.03,178.76,178.75,0.67]
[1755636818147,7.23486796,178.76,178.75,0.67]
[1755636819157,7.23486796,178.76,178.74,0.14216157]
[1755636819360,7.20486796,178.75,178.74,0.14216157]
[1755636820084,7.23486796,178.76,178.74,0.85216157]
[1755636820278,7.23486796,178.76,178.75,0.71]
[1755636820483,0.03,178.76,178.75,0.71]
[1755636823892,0.03,178.76,178.74,0.14216157]
[1755636824081,0.03,178.76,178.75,0.71]
[1755636824284,4.62720945,178.76,178.73,40.17]
[1755636824585,4.62720945,178.76,178.74,0.71]
[1755636825399,0.03,178.76,178.75,0.71]
[1755636826169,0.03,178.76,178.75,0.85216157]
[1755636826780,0.03,178.76,178.75,26.85216157]
[1755636827395,0.03,178.76,178.75,0.85216157]
[1755636829710,0.03,178.76,178.75,0.14216157]
[1755636830079,4.62720945,178.76,178.75,0.14216157]
[1755636831387,4.62720945,178.76,178.74,0.71]
[1755636831804,4.62720945,178.76,178.74,0.14216157]
[1755636833107,4.59720945,178.75,178.73,39.46]
[1755636834079,4.62720945,178.76,178.73,39.46]
[1755636834281,4.59720945,178.75,178.73,39.46]
[1755636834806,4.59720945,178.75,178.73,0.71]
[1755636835110,4.59720945,178.75,178.74,39.44]
[1755636836103,4.59720945,178.75,178.74,40.15]
[1755636836285,4.59720945,178.75,178.71,0.71]
[1755636836484,4.59720945,178.74,178.72,40.15]
[1755636836701,0.03,178.76,178.73,0.71]
[1755636836904,0.03,178.76,178.74,4.73937102]
[1755636837183,0.03,178.76,178.75,39.58216157]
[1755636837611,0.03,178.76,178.75,40.29216157]
[1755636838190,0.03,178.76,178.75,44.88937102]
[1755636838413,0.03,178.76,178.75,47.47144212]
[1755636840811,0.03,178.76,178.75,61.06703613]
[1755636841188,0.03,178.76,178.75,68.90302872]
[1755636849713,0.03,178.78,178.77,13.59559401]
[1755636849916,0.03,178.78,178.77,67.05086506]
[1755636850096,0.03,178.78,178.77,67.77086506]
[1755636850427,0.03,178.8,178.79,39.73775558]
[1755636850728,0.03,178.8,178.79,91.9301901]
[1755636850893,0.03,178.8,178.79,92.6501901]
[1755636851096,0.03,178.8,178.79,96.4109761]
[1755636852445,0.7,178.9,178.85,0.14216157]
[1755636852620,0.7,178.9,178.86,46.59928055]
[1755636852946,0.7,178.89,178.87,0.14216157]
[1755636853234,0.7,178.89,178.88,39.42]
[1755636854351,0.7,178.89,178.88,39.56216157]
[1755636854525,4.45833131,178.93,178.89,0.14216157]
[1755636854848,0.7,178.92,178.9,39.42]
[1755636855020,7.17928055,178.94,178.91,39.42]
[1755636855212,0.7,178.93,178.92,39.42]
[1755636856644,0.7,178.95,178.92,39.42]
[1755636856825,0.7,178.94,178.92,39.42]
[1755636857025,7.17928055,178.96,178.93,0.14216157]
[1755636857026,0.7,178.96,178.93,0.14216157]
[1755636857357,0.7,178.95,178.94,39.4]
[1755636859449,7.87928055,178.95,178.94,39.4]
[1755636859846,7.17928055,178.95,178.94,39.4]
[1755636860065,7.87928055,178.95,178.94,39.4]
[1755636862279,0.7,178.95,178.94,39.4]
[1755636862463,7.87928055,178.95,178.94,39.4]
[1755636862780,7.17928055,178.95,178.94,39.4]
[1755636863070,7.87928055,178.95,178.94,39.4]
[1755636863442,7.87928055,178.95,178.93,39.4]
[1755636863693,7.87928055,178.94,178.93,39.4]
[1755636865047,7.87928055,178.94,178.86,7.32144212]
[1755636865245,3.75010992,178.99,178.88,0.14216157]
[1755636865246,7.17928055,178.91,178.88,0.14216157]
[1755636865459,7.17928055,178.92,178.88,0.14216157]
[1755636865758,7.17928055,178.92,178.88,0.86216157]
[1755636865959,7.17928055,178.94,178.9,0.14216157]
[1755636866174,7.17928055,178.94,178.91,39.4]
[1755636866367,0.7,178.95,178.91,40.12]
[1755636866545,7.17928055,178.95,178.91,40.12]
[1755636866873,7.17928055,178.95,178.92,0.14216157]
[1755636867874,0.7,178.96,178.92,0.14216157]
[1755636868056,7.17928055,178.95,178.92,0.14216157]
[1755636868260,0.7,178.96,178.92,0.14216157]
[1755636868460,7.17928055,178.94,178.92,0.14216157]
[1755636870070,7.17928055,178.94,178.93,0.72]
[1755636870271,7.17928055,178.94,178.92,0.14216157]
[1755636872084,0.7,178.96,178.92,0.14216157]
[1755636872262,7.17928055,178.95,178.92,0.86216157]
[1755636872677,7.17928055,178.94,178.93,26.0]
[1755636872889,7.87928055,178.94,178.93,26.0]
[1755636873366,7.17928055,178.94,178.93,26.0]
[1755636874693,0.7,178.96,178.94,26.0]
[1755636874870,0.03,178.99,178.94,65.38]
[1755636875183,0.67,178.95,178.94,65.38]
[1755636875885,7.84928055,178.95,178.94,65.38]
[1755636876064,7.17928055,178.95,178.94,65.38]
[1755636877078,0.7,178.99,178.94,66.09]
[1755636877251,0.7,178.99,178.94,65.38]
[1755636877252,7.17928055,178.96,178.94,65.38]
[1755636877453,7.17928055,178.97,178.95,0.71]
[1755636878077,7.17928055,178.96,178.94,39.38]
[1755636878254,0.7,178.99,178.94,46.559281]
[1755636878458,7.17928055,178.96,178.94,47.269281]
[1755636878877,7.17928055,178.96,178.94,40.09]
[1755636882315,7.17928055,178.96,178.94,39.38]
[1755636882597,7.17928055,178.96,178.95,0.71]
[1755636883394,7.17928055,178.97,178.95,0.71]
[1755636883706,7.17928055,178.97,178.96,40.09]
[1755636883879,7.17928055,178.97,178.96,39.38]
[1755636884605,0.7,178.99,178.96,39.38]
[1755636884767,7.17928055,178.97,178.96,39.38]
[1755636886904,0.7,178.99,178.96,39.38]
[1755636887080,7.17928055,178.97,178.96,39.38]
[1755636888381,4.58679214,178.97,178.96,39.38]
[1755636890890,5.25679214,178.97,178.92,26.71]
[1755636891095,0.67,178.96,178.93,39.38]
[1755636891290,4.58679214,178.94,178.93,39.38]
[1755636892289,7.16856714,178.94,178.93,39.38]
[1755636892592,7.16856714,178.94,178.93,40.09]
[1755636892910,7.16856714,178.94,178.93,39.38]
[1755636893100,7.16856714,178.94,178.93,40.09]
[1755636894095,0.67,178.97,178.93,40.09]
[1755636894422,7.16856714,178.94,178.88,0.71]
[1755636894592,7.16856714,178.91,178.89,39.38]
[1755636894787,7.16856714,178.9,178.89,39.38]
[1755636895007,4.4232129,178.92,178.89,39.38]
[1755636895209,7.16856714,178.9,178.89,39.38]
[1755636895384,7.16856714,178.9,178.89,40.09]
[1755636895819,7.16856714,178.9,178.89,39.38]
[1755636896321,3.76567629,178.92,178.89,39.38]
[1755636896490,7.16856714,178.92,178.9,0.71]
[1755636896818,7.16856714,178.92,178.91,0.71]
[1755636897941,3.76753468,178.93,178.91,0.71]
[1755636898113,7.16856714,178.93,178.91,0.71]
[1755636898315,7.16856714,178.92,178.89,39.38]
[1755636898904,7.16856714,178.92,178.9,0.71]
[1755636899104,7.16856714,178.92,178.91,0.71]
[1755636899508,7.16856714,178.92,178.89,40.09]
[1755636899704,7.16856714,178.92,178.9,0.71]
[1755636899900,7.16856714,178.92,178.89,39.38]
[1755636900129,7.16856714,178.92,178.91,0.71]
[1755636900821,7.16856714,178.93,178.91,0.71]
[1755636901529,7.16856714,178.93,178.92,0.71]
[1755636901830,7.16856714,178.95,178.92,40.07]
[1755636902019,7.16856714,178.95,178.93,0.71]
[1755636902219,7.16856714,178.95,178.94,0.71]
[1755636903110,3.76862508,178.96,178.92,40.07]
[1755636903310,7.16856714,178.93,178.92,39.36]
[1755636903539,7.83856714,178.93,178.92,39.36]
[1755636903717,11.60733032,178.93,178.92,39.36]
[1755636903912,7.83856714,178.93,178.92,39.36]
[1755636904301,11.60733032,178.93,178.92,39.36]
[1755636904506,11.60733032,178.93,178.89,39.36]
[1755636904704,7.16856714,178.9,178.89,40.07]
[1755636905345,7.16856714,178.9,178.89,39.36]
[1755636905657,7.88856714,178.9,178.89,39.36]
[1755636906211,7.16856714,178.9,178.89,39.36]
[1755636906827,7.16856714,178.9,178.89,40.07]
[1755636907439,7.16856714,178.9,178.89,39.36]
[1755636908139,11.65679215,178.9,178.89,39.36]
[1755636908439,7.16856714,178.9,178.89,40.07]
[1755636909042,33.09893992,178.98,178.89,40.07]
[1755636909043,3.76822501,178.93,178.89,40.07]
[1755636909241,7.16856714,178.93,178.9,0.71]
[1755636909758,0.72,178.96,178.91,0.71]
[1755636909920,7.16856714,178.92,178.78,45.89344749]
[1755636910118,7.16856714,178.92,178.84,0.71]
[1755636910119,7.16856714,178.85,178.84,0.71]
[1755636910344,7.16856714,178.86,178.84,40.07]
[1755636910528,4.48652004,178.9,178.84,40.07]
[1755636910529,7.16856714,178.87,178.84,39.36]
[1755636910733,7.16856714,178.88,178.85,0.71]
[1755636910955,3.76658996,178.92,178.85,0.71]
[1755636911260,7.16856714,178.89,178.85,0.71]
[1755636911451,7.16856714,178.91,178.86,13.73775558]
[1755636911613,29.76658996,178.94,178.86,13.73775558]
[1755636911814,7.16856714,178.91,178.88,0.14216157]
[1755636912014,7.16856714,178.91,178.89,40.07]
[1755636912230,7.16856714,178.91,178.9,0.71]
[1755636912851,3.76658996,178.94,178.9,0.71]
[1755636913056,7.16856714,178.91,178.9,0.71]
[1755636913356,7.16856714,178.91,178.89,39.36]
[1755636913666,7.16856714,178.9,178.89,40.21216157]
[1755636914232,7.16856714,178.91,178.89,40.21216157]
[1755636914922,7.16856714,178.91,178.89,39.50216157]
[1755636915149,7.16856714,178.9,178.89,40.07]
[1755636917261,7.16856714,178.91,178.89,40.07]
[1755636917762,7.16856714,178.9,178.89,40.07]
[1755636920448,7.16856714,178.91,178.89,40.07]
[1755636921259,7.16856714,178.9,178.89,39.36]
[1755636921459,7.88856714,178.9,178.89,39.36]
[1755636924067,7.16856714,178.9,178.89,39.36]
[1755636924773,7.16856714,178.9,178.88,39.36]
[1755636925067,7.16856714,178.89,178.88,39.36]
[1755636926658,7.88856714,178.89,178.84,0.14216157]
[1755636926854,7.16856714,178.85,178.81,0.71]
[1755636927076,0.72,178.88,178.81,0.71]
[1755636927077,0.72,178.87,178.83,39.36]
[1755636927266,29.76658996,178.89,178.84,0.71]
[1755636927267,26.72,178.89,178.84,0.71]
[1755636927575,0.72,178.88,178.83,39.36]
[1755636927771,0.72,178.87,178.83,40.07]
[1755636928176,7.16856714,178.84,178.83,39.36]
[1755636928787,7.16856714,178.84,178.83,40.07]
[1755636930579,26.72,178.89,178.83,40.07]
[1755636930795,7.16856714,178.85,178.83,40.07]
[1755636930950,7.16856714,178.85,178.83,39.36]
[1755636931154,7.16856714,178.85,178.84,0.71]
[1755636931882,0.72,178.92,178.84,0.71]
[1755636932075,4.48118994,178.92,178.85,0.14216157]
[1755636932286,7.16856714,178.9,178.87,0.14216157]
[1755636932462,7.16856714,178.9,178.88,0.71]
[1755636932660,7.16856714,178.9,178.87,0.14216157]
[1755636932863,7.16856714,178.88,178.85,17.516252]
[1755636933087,3.76118994,178.92,178.81,7.16856714]
[1755636933088,7.16856714,178.86,178.83,0.85216157]
[1755636933260,7.16856714,178.86,178.84,56.878135]
[1755636933581,7.16856714,178.86,178.85,0.71]
[1755636935757,7.16856714,178.86,178.84,56.168135]
[1755636936082,7.16856714,178.86,178.84,40.08]
[1755636936256,7.16856714,178.85,178.84,40.08]
[1755636936460,7.16856714,178.85,178.84,39.36]
[1755636936793,7.88856714,178.85,178.78,0.72]
[1755636936968,29.76118994,178.87,178.84,7.168567]
[1755636937288,3.76118994,178.86,178.79,39.36]
[1755636937655,0.72,178.85,178.79,40.08]
[1755636938183,7.16856714,178.8,178.79,40.08]
[1755636939892,7.16856714,178.83,178.8,0.14216157]
[1755636940074,7.16856714,178.84,178.81,0.72]
[1755636940596,7.16856714,178.84,178.82,39.36]
[1755636940762,7.16856714,178.83,178.82,40.08]
[1755636941184,7.16856714,178.85,178.83,0.14216157]
[1755636941390,7.16856714,178.86,178.84,0.72]
[1755636941591,7.16856714,178.86,178.83,0.14216157]
[1755636941889,7.16856714,178.85,178.84,0.72]
[1755636944076,7.16856714,178.86,178.84,0.72]
[1755636944392,7.16856714,178.87,178.84,0.72]
[1755636944581,7.16856714,178.87,178.83,0.14216157]
[1755636944779,7.16856714,178.87,178.85,0.72]
[1755636945168,7.16856714,178.86,178.83,0.14216157]
[1755636945373,7.16856714,178.86,178.84,0.72]
[1755636947064,7.16856714,178.86,178.83,0.14216157]
[1755636947375,7.16856714,178.85,178.83,0.14216157]
[1755636948596,0.72,178.86,178.83,0.14216157]
[1755636948809,7.16856714,178.85,178.83,0.14216157]
[1755636949093,7.16856714,178.86,178.84,0.72]
[1755636949994,7.16856714,178.88,178.85,0.72]
[1755636950167,0.03,178.89,178.85,40.08]
[1755636950697,0.03,178.89,178.86,0.72]
[1755636951196,0.03,178.89,178.87,0.72]
[1755636951569,0.03,178.89,178.88,39.36]
[1755636951795,0.03,178.89,178.88,46.67072871]
[1755636952098,0.03,178.89,178.88,60.98632272]
[1755636956991,0.03,178.89,178.88,53.81775558]
[1755636958883,0.03,178.89,178.88,39.50216157]
[1755636959890,0.03,178.89,178.88,65.50216157]
[1755636960297,0.75,178.89,178.88,39.36]
[1755636960607,0.75,178.89,178.88,53.81775558]
[1755636960608,0.03,178.89,178.88,53.81775558]
[1755636960776,0.03,178.89,178.88,40.22216157]
[1755636960972,0.03,178.89,178.88,39.50216157]
[1755636961704,0.03,178.89,178.88,40.22216157]
[1755636963192,0.03,178.89,178.88,53.81775558]
[1755636963389,0.03,178.89,178.88,60.98632272]
[1755636965183,0.03,178.89,178.88,53.81775558]
[1755636967498,0.03,178.89,178.88,53.09775558]
[1755636967908,7.19856714,178.89,178.88,39.36]
[1755636968111,7.91856714,178.89,178.88,39.36]
[1755636968591,7.19856714,178.89,178.88,39.36]
[1755636970689,7.91856714,178.89,178.88,39.36]
[1755636970912,7.91856714,178.89,178.86,39.36]
[1755636971089,7.16856714,178.87,178.86,39.36]
[1755636971286,0.72,178.88,178.86,39.36]
[1755636971784,7.16856714,178.87,178.86,39.36]
[1755636973705,0.03,178.89,178.86,39.36]
[1755636973911,7.16856714,178.87,178.86,39.36]
[1755636976620,0.15,178.89,178.86,39.36]
[1755636976918,7.16856714,178.87,178.86,40.01]
[1755636977695,7.16856714,178.87,178.86,39.36]
[1755636977891,0.03,178.89,178.86,39.36]
[1755636978094,7.16856714,178.87,178.86,39.36]
[1755636979290,0.03,178.89,178.86,39.36]
[1755636979490,7.16856714,178.87,178.86,40.01]
[1755636981199,0.03,178.89,178.86,40.01]
[1755636981396,0.03,178.89,178.87,0.65]
[1755636982515,7.19856714,178.89,178.87,0.65]
[1755636982695,7.19856714,178.89,178.88,0.65]
[1755636984987,0.03,178.89,178.88,14.38775558]
[1755636985207,0.03,178.89,178.88,21.55632272]
[1755636987817,0.03,178.89,178.88,14.38775558]
[1755636988020,0.03,178.89,178.88,21.55632272]
[1755636989236,0.03,178.89,178.88,14.38775558]
[1755636989527,0.03,178.89,178.88,21.55632272]
[1755636995138,0.03,178.89,178.86,0.66]
[1755636995338,0.03,178.89,178.87,39.34]
[1755636995545,0.03,178.89,178.88,0.14216157]
[1755636995842,0.03,178.89,178.87,40.0]
[1755636995843,7.85856714,178.89,178.87,39.34]
[1755636996011,7.82856714,178.88,178.87,39.34]
[1755636996336,7.19856714,178.89,178.87,39.34]
[1755636996518,7.85856714,178.89,178.87,39.34]
[1755636996712,7.82856714,178.88,178.87,39.34]
[1755636996909,7.82856714,178.88,178.84,39.34]
[1755636997110,7.16856714,178.87,178.84,40.0]
[1755636998428,0.03,178.89,178.86,13.59559401]
[1755636998628,0.03,178.89,178.87,39.34]
[1755636999309,7.85856714,178.89,178.87,39.34]
[1755637001632,7.19856714,178.89,178.87,39.34]
[1755637001835,0.03,178.89,178.88,0.14216157]
[1755637002022,0.03,178.89,178.88,0.80216157]
[1755637002221,0.03,178.89,178.88,11.73688857]
[1755637002940,0.03,178.89,178.88,25.33248258]
[1755637010826,0.03,178.89,178.87,39.34]
[1755637011052,7.85856714,178.89,178.87,39.34]
[1755637011348,7.82856714,178.88,178.87,39.34]
[1755637012528,7.82856714,178.88,178.82,5.58630145]
[1755637012735,7.16856714,178.85,178.83,39.34]
[1755637013876,7.16856714,178.86,178.84,0.66]
[1755637014160,7.16856714,178.88,178.85,40.14216157]
[1755637014450,7.19856714,178.89,178.86,0.66]
[1755637014656,0.03,178.89,178.87,40.0]
[1755637015453,7.19856714,178.89,178.87,39.34]
[1755637016445,7.16856714,178.88,178.87,39.34]
[1755637016824,0.69,178.89,178.87,39.34]